bitfinex-derivatives/quotes_BTCF0:USTF0_20251109
["timestamp","ask_amount","ask_price","bid_price","bid_amount"]
[1762700998710,0.31481705,103410.0,103400.0,0.09558]
[1762700998911,0.67561705,103410.0,103400.0,0.09558]
[1762700999315,0.67761705,103410.0,103400.0,0.09558]
[1762700999713,0.67761705,103410.0,103400.0,0.1923056]
[1762700999917,0.67761705,103410.0,103400.0,0.09558]
[1762701002728,0.31681705,103410.0,103400.0,0.09558]
[1762701002929,0.31681705,103410.0,103400.0,0.1923056]
[1762701003129,0.67761705,103410.0,103400.0,0.1923056]
[1762701004127,0.67761705,103410.0,103400.0,0.09558]
[1762701004929,0.67761705,103410.0,103400.0,0.1923056]
[1762701005420,0.67761705,103410.0,103400.0,0.09558]
[1762701006126,0.69597705,103410.0,103400.0,0.0733]
[1762701006327,0.1695256,103400.0,103390.0,0.13034192]
[1762701006530,0.1695256,103400.0,103390.0,0.58787692]
[1762701006730,0.3140457,103400.0,103390.0,0.58787692]
[1762701007333,0.2173201,103400.0,103390.0,0.58787692]
[1762701007534,0.3140457,103400.0,103390.0,0.58787692]
[1762701007733,0.3140457,103400.0,103390.0,0.58887692]
[1762701007936,0.2173201,103400.0,103390.0,0.58887692]
[1762701008826,0.1445201,103400.0,103390.0,0.58887692]
[1762701009136,0.0967166,103410.0,103390.0,0.58887692]
[1762701009137,0.530453,103420.0,103410.0,0.1922962]
[1762701009333,0.530453,103420.0,103410.0,0.21827739]
[1762701009531,0.67617483,103420.0,103410.0,0.21827739]
[1762701009832,0.31537483,103420.0,103410.0,0.25291897]
[1762701010229,0.21866743,103420.0,103410.0,0.25291897]
[1762701010432,0.0001456,103420.0,103410.0,0.58773778]
[1762701010629,0.0001456,103420.0,103410.0,0.63946454]
[1762701010937,0.0001456,103420.0,103410.0,0.60482296]
[1762701011132,0.0011456,103420.0,103410.0,0.60482296]
[1762701011633,0.0728,103440.0,103430.0,0.1922775]
[1762701011835,0.0728,103440.0,103430.0,0.25292152]
[1762701011836,0.0966882,103440.0,103430.0,0.25292152]
[1762701012032,0.5302845,103450.0,103440.0,0.1922682]
[1762701012225,0.5302845,103450.0,103440.0,0.21823793]
[1762701012428,0.67467404,103450.0,103440.0,0.12154973]
[1762701013132,0.67467404,103450.0,103440.0,0.09558]
[1762701014835,0.67467404,103450.0,103440.0,0.1922682]
[1762701015231,0.67466844,103450.0,103440.0,0.1922682]
[1762701015431,0.67466844,103450.0,103440.0,0.21823793]
[1762701015432,0.31386844,103450.0,103440.0,0.21823793]
[1762701015623,0.31386844,103450.0,103440.0,0.25289166]
[1762701015825,0.31386844,103450.0,103440.0,0.15620346]
[1762701016028,0.31386844,103450.0,103440.0,0.25289166]
[1762701016428,0.31386844,103450.0,103440.0,0.15620346]
[1762701016629,0.67466844,103450.0,103440.0,0.12154973]
[1762701017138,0.27798844,103450.0,103440.0,0.21923793]
[1762701017334,0.14638954,103450.0,103440.0,0.58003793]
[1762701017633,0.002,103450.0,103440.0,0.58872193]
[1762701017935,0.002,103450.0,103440.0,0.66605371]
[1762701018729,0.002,103450.0,103440.0,0.66505371]
[1762701019837,0.09424,103450.0,103440.0,0.54608551]
[1762701020029,0.1909188,103450.0,103440.0,0.17655361]
[1762701020224,0.3361854,103450.0,103440.0,0.17655361]
[1762701020426,0.6969854,103450.0,103440.0,0.09922183]
[1762701020624,0.6969854,103450.0,103440.0,0.10022183]
[1762701021437,0.6989854,103450.0,103440.0,0.09922183]
[1762701022338,0.6989854,103450.0,103440.0,0.10022183]
[1762701023539,0.2415066,103450.0,103440.0,0.55771003]
[1762701023739,0.2415066,103450.0,103440.0,0.55671003]
[1762701023933,0.3381854,103450.0,103440.0,0.19591003]
[1762701024133,0.3361854,103450.0,103440.0,0.19591003]
[1762701024439,0.6969854,103450.0,103440.0,0.09922183]
[1762701024639,0.6969854,103450.0,103440.0,0.10022183]
[1762701024939,0.3361854,103450.0,103440.0,0.10022183]
[1762701025133,0.2395066,103450.0,103440.0,0.19691003]
[1762701025434,0.1452666,103450.0,103440.0,0.58219193]
[1762701026226,0.1452666,103450.0,103440.0,0.60811746]
[1762701026426,0.2166166,103450.0,103440.0,0.60811746]
[1762701028532,0.3335154,103450.0,103440.0,0.60811746]
[1762701029139,0.3335154,103450.0,103440.0,0.24731746]
[1762701029338,0.3335154,103450.0,103440.0,0.21266373]
[1762701029639,0.3335154,103450.0,103440.0,0.60811746]
[1762701029840,0.2368366,103450.0,103440.0,0.60811746]
[1762701031741,0.3335154,103450.0,103440.0,0.60811746]
[1762701032443,0.3335155,103450.0,103440.0,0.60811746]
[1762701032647,0.3335155,103450.0,103440.0,0.23156746]
[1762701033448,0.2368366,103450.0,103440.0,0.59236746]
[1762701034030,0.2368366,103450.0,103440.0,0.67163746]
[1762701034331,0.09031,103470.0,103460.0,0.0966619]
[1762701034532,0.09031,103470.0,103460.0,0.12260976]
[1762701034836,0.23555606,103470.0,103460.0,0.03459714]
[1762701035142,0.33221626,103470.0,103460.0,0.06054244]
[1762701035344,0.69301626,103470.0,103460.0,0.0259453]
[1762701035844,0.67691347,103470.0,103460.0,0.0259453]
[1762701036942,0.67691347,103470.0,103460.0,0.0269453]
[1762701037143,0.58025327,103470.0,103460.0,0.1236148]
[1762701037344,0.58225327,103470.0,103460.0,0.15821194]
[1762701037546,0.58225327,103470.0,103460.0,0.15721194]
[1762701037742,0.22145327,103470.0,103460.0,0.51801194]
[1762701038045,0.22145327,103470.0,103460.0,0.49206664]
[1762701038542,0.21945327,103470.0,103460.0,0.49206664]
[1762701039340,0.21945327,103470.0,103460.0,0.49306664]
[1762701040044,0.21945327,103470.0,103460.0,0.54504723]
[1762701040237,0.21945327,103470.0,103460.0,0.51045009]
[1762701041239,0.21945327,103470.0,103460.0,0.14965009]
[1762701041439,0.31611347,103470.0,103460.0,0.08764591]
[1762701041650,0.21945327,103470.0,103460.0,0.54511541]
[1762701042047,0.21945327,103470.0,103460.0,0.18431541]
[1762701042250,0.21945327,103470.0,103460.0,0.54511541]
[1762701042840,0.21945327,103470.0,103460.0,0.51045009]
[1762701044545,0.21945327,103470.0,103460.0,0.14965009]
[1762701044749,0.31611347,103470.0,103460.0,0.184309]
[1762701045548,0.21945327,103470.0,103460.0,0.184309]
[1762701045746,0.21945327,103470.0,103460.0,0.545109]
[1762701045953,0.21945327,103470.0,103460.0,0.184309]
[1762701046143,0.31611347,103470.0,103460.0,0.184309]
[1762701046349,0.21945327,103470.0,103460.0,0.545109]
[1762701046549,0.31611347,103470.0,103460.0,0.332609]
[1762701047150,0.31611347,103470.0,103460.0,0.18395891]
[1762701047347,0.67691347,103470.0,103460.0,0.18395891]
[1762701048946,0.67691347,103470.0,103460.0,0.02699742]
[1762701049953,0.67891347,103470.0,103460.0,0.02599742]
[1762701051253,0.67891347,103470.0,103460.0,0.12266692]
[1762701052755,0.67891347,103470.0,103460.0,0.12366692]
[1762701053164,0.67891347,103470.0,103460.0,0.15832583]
[1762701053354,0.67891347,103470.0,103460.0,0.12366692]
[1762701053553,0.67891347,103470.0,103460.0,0.02599742]
[1762701054154,0.1858495,103460.0,103450.0,0.05582619]
[1762701054355,0.52343482,103460.0,103450.0,0.18724162]
[1762701054557,0.66916309,103460.0,103450.0,0.18724162]
[1762701055352,0.30836309,103460.0,103450.0,0.18724162]
[1762701055851,0.23490827,103460.0,103450.0,0.15350509]
[1762701056055,0.23490827,103460.0,103450.0,0.51430509]
[1762701056360,0.23490827,103460.0,103450.0,0.15350509]
[1762701056656,0.23490827,103460.0,103450.0,0.51430509]
[1762701057363,0.33157777,103460.0,103450.0,0.15350509]
[1762701057656,0.08872,103480.0,103470.0,0.0973602]
[1762701057852,0.08872,103480.0,103470.0,0.05281148]
[1762701058057,0.23425976,103480.0,103470.0,0.14947168]
[1762701058454,0.23425976,103480.0,103470.0,0.51027168]
[1762701058856,0.23525976,103480.0,103470.0,0.51027168]
[1762701059548,0.23825976,103480.0,103470.0,0.51027168]
[1762701059950,0.23825976,103480.0,103470.0,0.58637489]
[1762701060670,0.23825976,103480.0,103470.0,0.53426341]
[1762701060864,0.23825976,103480.0,103470.0,0.60392431]
[1762701061460,0.09272,103480.0,103470.0,0.60392431]
[1762701061849,0.05826,103480.0,103470.0,0.60392431]
[1762701062459,0.0235,103480.0,103470.0,0.60392431]
[1762701062763,0.0235,103480.0,103470.0,0.97444835]
[1762701063263,0.05826,103480.0,103470.0,0.97444835]
[1762701063564,0.0235,103480.0,103470.0,0.97444835]
[1762701064063,0.004,103480.0,103470.0,0.97444835]
[1762701064559,0.004,103480.0,103470.0,1.21604835]
[1762701065662,0.004,103480.0,103470.0,0.99036661]
[1762701065864,0.01978,103500.0,103470.0,1.91893925]
[1762701066059,0.089,103510.0,103490.0,0.8849418]
[1762701066257,0.089,103510.0,103500.0,0.08666961]
[1762701066457,0.089,103510.0,103500.0,0.18330181]
[1762701066664,0.089,103510.0,103500.0,0.14864696]
[1762701066866,0.5464228,103510.0,103500.0,0.08666917]
[1762701067159,0.092,103510.0,103500.0,0.18330137]
[1762701067551,0.1886228,103510.0,103500.0,0.18330137]
[1762701067753,0.1906228,103510.0,103500.0,0.18430137]
[1762701067952,0.68056842,103510.0,103500.0,0.03565441]
[1762701068357,0.68056842,103510.0,103500.0,0.001]
[1762701068766,0.68256842,103510.0,103500.0,0.001]
[1762701072272,0.68256842,103510.0,103500.0,0.1316522]
[1762701072472,0.68256842,103510.0,103500.0,0.2446122]
[1762701073675,0.58594562,103510.0,103500.0,0.2446122]
[1762701073967,0.08097696,103510.0,103500.0,0.2446122]
[1762701074172,0.08097696,103510.0,103500.0,0.27926661]
[1762701074868,0.007,103510.0,103500.0,0.29428661]
[1762701075072,0.007,103510.0,103500.0,1.49660661]
[1762701075272,0.007,103510.0,103500.0,1.15316696]
[1762701075465,0.096,103510.0,103500.0,0.553025]
[1762701075673,0.007,103510.0,103500.0,0.896485]
[1762701075867,0.01978,103520.0,103510.0,0.0966228]
[1762701076160,0.01978,103520.0,103510.0,0.50926563]
[1762701076360,0.089,103530.0,103510.0,0.41264283]
[1762701076574,0.089,103530.0,103520.0,0.08668498]
[1762701076968,0.089,103530.0,103520.0,0.13115138]
[1762701078069,0.089,103530.0,103520.0,0.03453798]
[1762701078272,0.089,103520.0,103510.0,0.49295338]
[1762701078473,0.5464135,103520.0,103510.0,0.03553798]
[1762701078675,0.69178347,103520.0,103510.0,0.001]
[1762701080064,0.089,103510.0,103500.0,0.07936489]
[1762701080264,0.4498,103510.0,103500.0,0.07936489]
[1762701081077,1.02778411,103510.0,103500.0,0.07936489]
[1762701081274,1.02778411,103510.0,103500.0,0.08136489]
[1762701081469,1.02778411,103510.0,103500.0,0.02771489]
[1762701082477,1.02778411,103510.0,103500.0,0.02871489]
[1762701083185,1.02778411,103510.0,103500.0,0.02771489]
[1762701083572,1.62778411,103510.0,103500.0,0.02771489]
[1762701083771,1.62778411,103510.0,103500.0,0.02671489]
[1762701084175,0.1856509,103480.0,103470.0,0.30351762]
[1762701084477,0.69052649,103480.0,103470.0,0.25167479]
[1762701084676,0.69052649,103480.0,103470.0,0.03453798]
[1762701084875,0.089,103460.0,103450.0,0.22786641]
[1762701085069,0.089,103460.0,103450.0,0.30494325]
[1762701085070,0.4498,103460.0,103450.0,0.30494325]
[1762701085375,0.69090291,103460.0,103450.0,0.30494325]
[1762701085575,0.59423331,103460.0,103450.0,0.30494325]
[1762701085881,0.69090291,103460.0,103450.0,0.30494325]
[1762701086075,0.69090291,103460.0,103450.0,0.25310042]
[1762701086276,0.69090291,103460.0,103450.0,0.15942632]
[1762701086884,0.23343331,103460.0,103450.0,0.25610532]
[1762701087072,0.33010291,103460.0,103450.0,0.26010532]
[1762701087477,0.23343331,103460.0,103450.0,0.26010532]
[1762701087778,0.23343331,103460.0,103450.0,0.25710532]
[1762701088668,0.23343331,103460.0,103450.0,0.25810532]
[1762701089374,0.23343331,103460.0,103450.0,0.25610532]
[1762701089581,0.23343331,103460.0,103450.0,0.25710532]
[1762701089777,0.23343331,103460.0,103450.0,0.22256734]
[1762701090386,0.23343331,103460.0,103450.0,0.25710532]
[1762701092080,0.09408253,103470.0,103460.0,0.1678796]
[1762701092284,0.09408253,103470.0,103460.0,0.56321758]
[1762701092585,0.00014253,103470.0,103460.0,0.81594758]
[1762701092782,0.00014253,103470.0,103460.0,0.86779041]
[1762701093184,0.00014253,103470.0,103460.0,0.62615041]
[1762701093383,0.00014253,103470.0,103460.0,0.83425243]
[1762701093881,0.38058,103490.0,103480.0,0.1678609]
[1762701093882,0.09394,103490.0,103480.0,0.1678609]
[1762701094087,0.09394,103490.0,103480.0,0.20243585]
[1762701094885,0.09394,103490.0,103480.0,0.56323585]
[1762701095184,0.09394,103490.0,103480.0,0.56423585]
[1762701095386,0.05453,103490.0,103480.0,0.56423585]
[1762701095690,0.05453,103490.0,103480.0,0.61609827]
[1762701095885,0.09704,103500.0,103490.0,0.1678516]
[1762701096087,0.09704,103500.0,103490.0,0.24408708]
[1762701096991,0.09704,103500.0,103490.0,0.24508708]
[1762701097190,0.45784,103510.0,103500.0,0.1678423]
[1762701097589,0.45784,103510.0,103500.0,0.07121]
[1762701097893,0.45784,103510.0,103500.0,0.1678423]
[1762701098098,0.09704,103510.0,103500.0,0.1678423]
[1762701098387,0.09704,103510.0,103500.0,0.20241725]
[1762701098891,0.09804,103510.0,103500.0,0.56321725]
[1762701099087,0.001,103510.0,103500.0,0.57430725]
[1762701099491,0.001,103510.0,103500.0,0.62616967]
[1762701101294,0.001,103510.0,103500.0,0.57430725]
[1762701101990,0.03575,103510.0,103500.0,0.57430725]
[1762701102400,0.09804,103510.0,103500.0,0.56321725]
[1762701102689,0.001,103510.0,103500.0,0.20241725]
[1762701102895,0.001,103510.0,103500.0,0.80473725]
[1762701103088,0.001,103510.0,103500.0,0.56321725]
[1762701103391,0.09804,103510.0,103500.0,0.20241725]
[1762701104291,0.1946629,103510.0,103500.0,0.16621715]
[1762701104498,0.5554629,103510.0,103500.0,0.1316422]
[1762701104691,0.1936722,103500.0,103490.0,0.63960142]
[1762701104892,0.09704,103500.0,103490.0,0.63960142]
[1762701106399,0.09704,103500.0,103490.0,0.64060142]
[1762701106603,0.69895033,103500.0,103490.0,0.11195532]
[1762701106896,0.69895033,103500.0,103490.0,0.07738037]
[1762701107484,1.03567033,103500.0,103490.0,0.07738037]
[1762701107789,1.03567033,103500.0,103490.0,0.00114489]
[1762701109393,1.25597627,103500.0,103490.0,0.00114489]
[1762701109892,1.25597627,103500.0,103490.0,0.00014489]
[1762701110488,1.25697627,103500.0,103490.0,0.00014489]
[1762701111688,1.25597627,103500.0,103490.0,0.00014489]
[1762701112193,1.25597627,103500.0,103490.0,0.00114489]
[1762701112794,1.25597627,103500.0,103490.0,0.00014489]
[1762701113600,1.25697627,103500.0,103490.0,0.00014489]
[1762701113796,0.92025627,103500.0,103490.0,0.00014489]
[1762701114102,1.25701627,103500.0,103490.0,0.00014489]
[1762701114300,1.25701627,103500.0,103490.0,4.89e-06]
[1762701114602,1.25701627,103500.0,103480.0,0.02595178]
[1762701114603,0.09089,103480.0,103470.0,0.17889038]
[1762701114803,0.45169,103480.0,103470.0,0.17889038]
[1762701115503,0.5483409,103480.0,103470.0,0.17889038]
[1762701116102,0.5483409,103480.0,103470.0,0.18189038]
[1762701116305,0.5483409,103480.0,103470.0,0.11980673]
[1762701116602,0.6924878,103480.0,103470.0,0.11980673]
[1762701116803,0.6924878,103480.0,103470.0,0.21746693]
[1762701117097,1.61035374,103480.0,103470.0,0.02995178]
[1762701117507,1.61035374,103480.0,103470.0,0.004]
[1762701118305,0.1862802,103470.0,103460.0,0.02609667]
[1762701118506,0.5470802,103470.0,103460.0,0.02609667]
[1762701118801,0.69179226,103470.0,103460.0,0.02609667]
[1762701119195,0.69179226,103470.0,103460.0,0.00014489]
[1762701119905,0.69179226,103470.0,103460.0,0.09681439]
[1762701120097,0.69179226,103470.0,103460.0,0.12276617]
[1762701120297,0.69179226,103470.0,103460.0,0.02709667]
[1762701120795,0.69179226,103470.0,103460.0,0.12376617]
[1762701121705,0.69179226,103470.0,103460.0,0.02709667]
[1762701123907,0.69179226,103470.0,103460.0,0.12376617]
[1762701124108,0.69179226,103470.0,103460.0,0.02709667]
[1762701124502,0.69179226,103470.0,103460.0,0.05290667]
[1762701124710,0.69179226,103470.0,103460.0,0.02709667]
[1762701125208,0.69179226,103470.0,103460.0,0.00114489]
[1762701126608,0.69179226,103470.0,103460.0,0.05276489]
[1762701127305,0.69179226,103470.0,103460.0,0.12362439]
[1762701127511,1.02863226,103470.0,103460.0,0.12362439]
[1762701127711,1.02859226,103470.0,103460.0,0.12362439]
[1762701128009,1.02859226,103470.0,103460.0,0.14943439]
[1762701128215,1.02863226,103470.0,103460.0,0.14943439]
[1762701129006,0.69179226,103470.0,103460.0,0.14943439]
[1762701129217,1.02863226,103470.0,103460.0,0.14943439]
[1762701129404,0.69179226,103470.0,103460.0,0.14943439]
[1762701129606,1.02863226,103470.0,103460.0,0.14943439]
[1762701130216,1.02863226,103470.0,103460.0,0.12362439]
[1762701130812,1.02863226,103470.0,103460.0,0.14943439]
[1762701131610,0.69179226,103470.0,103460.0,0.14943439]
[1762701131909,0.69179226,103470.0,103460.0,0.17538617]
[1762701132310,0.59513206,103470.0,103460.0,0.17538617]
[1762701132513,0.23433206,103470.0,103460.0,0.18400934]
[1762701132713,0.23433206,103470.0,103460.0,0.23587176]
[1762701133418,0.23433206,103470.0,103460.0,0.20129681]
[1762701133822,0.23433206,103470.0,103460.0,0.56209681]
[1762701134010,0.08962,103470.0,103460.0,0.56209681]
[1762701135314,0.08962,103470.0,103460.0,0.51023439]
[1762701135717,0.08962,103470.0,103460.0,0.5622558]
[1762701136417,0.08962,103470.0,103460.0,0.51023439]
[1762701137402,0.08962,103470.0,103460.0,0.14943439]
[1762701137603,0.08962,103470.0,103460.0,0.51023439]
[1762701140010,0.03437,103470.0,103460.0,0.59750319]
[1762701140215,0.09042,103480.0,103470.0,0.1482802]
[1762701140618,0.09042,103480.0,103470.0,0.5090802]
[1762701141012,0.09042,103480.0,103470.0,0.578439]
[1762701142310,0.09142,103480.0,103470.0,0.578439]
[1762701143423,0.1870708,103480.0,103470.0,0.1542802]
[1762701143625,0.09042,103480.0,103470.0,0.1542802]
[1762701143920,0.1870708,103480.0,103470.0,0.20633521]
[1762701144235,0.1870708,103480.0,103470.0,0.1542802]
[1762701144236,0.09042,103480.0,103470.0,0.1542802]
[1762701144525,0.09042,103480.0,103470.0,0.20633469]
[1762701144718,0.45122,103480.0,103470.0,0.20633469]
[1762701145022,0.09042,103480.0,103470.0,0.1542802]
[1762701146123,0.09042,103480.0,103470.0,0.223639]
[1762701146317,0.09042,103480.0,103470.0,0.584439]
[1762701146513,0.09042,103480.0,103470.0,0.223639]
[1762701147715,0.45122,103480.0,103470.0,0.223639]
[1762701148223,0.69282453,103480.0,103470.0,0.10965848]
[1762701148424,0.69282453,103480.0,103470.0,0.05803848]
[1762701148920,0.83886863,103480.0,103470.0,0.09273304]
[1762701149225,0.69282453,103480.0,103470.0,0.09273304]
[1762701149524,0.69282453,103480.0,103470.0,0.08773304]
[1762701150016,0.69282453,103480.0,103470.0,0.03569456]
[1762701151127,0.69282453,103480.0,103470.0,0.13235476]
[1762701151418,0.69282453,103480.0,103470.0,0.03569456]
[1762701151624,0.69282453,103480.0,103470.0,0.13235476]
[1762701153225,0.83886863,103480.0,103470.0,0.13235476]
[1762701154127,0.83886863,103480.0,103470.0,0.03569456]
[1762701154323,0.69282453,103480.0,103470.0,0.13235476]
[1762701154519,0.69282453,103480.0,103470.0,0.14774476]
[1762701155328,0.69282453,103480.0,103470.0,0.21517324]
[1762701155629,0.09042,103480.0,103470.0,0.54127868]
[1762701155815,0.1870709,103480.0,103470.0,0.18047868]
[1762701156020,0.5478709,103480.0,103470.0,0.18047868]
[1762701156220,0.69292683,103480.0,103470.0,0.18047868]
[1762701156925,0.78639622,103480.0,103470.0,0.18047868]
[1762701158630,0.87986561,103480.0,103470.0,0.14969868]
[1762701158928,0.87986561,103480.0,103470.0,0.18047868]
[1762701159326,0.78639622,103480.0,103470.0,0.18047868]
[1762701159526,0.68974532,103480.0,103470.0,0.18047868]
[1762701160329,0.78639612,103480.0,103470.0,0.18047868]
[1762701160721,0.68974532,103480.0,103470.0,0.18047868]
[1762701160922,0.32894532,103480.0,103470.0,0.1284402]
[1762701161228,0.32894532,103480.0,103470.0,0.198799]
[1762701161429,0.32894532,103480.0,103470.0,0.559599]
[1762701161631,0.32894532,103480.0,103470.0,0.561599]
[1762701161817,0.32894532,103480.0,103470.0,0.200799]
[1762701162023,0.32894532,103480.0,103470.0,0.201799]
[1762701162332,0.32894532,103480.0,103470.0,0.202799]
[1762701162727,0.23547593,103480.0,103470.0,0.202799]
[1762701163018,0.32894532,103480.0,103470.0,0.202799]
[1762701163616,0.09042,103480.0,103470.0,0.29626839]
[1762701163829,0.09042,103480.0,103470.0,0.58770959]
[1762701164026,0.09042,103480.0,103470.0,0.6744081]
[1762701167736,0.09042,103480.0,103470.0,0.22690959]
[1762701167933,0.09042,103480.0,103470.0,0.58770959]
[1762701168336,0.09042,103480.0,103470.0,0.6744081]
[1762701168529,0.09042,103480.0,103470.0,0.22690959]
[1762701168727,0.09042,103480.0,103470.0,0.58770959]
[1762701169334,0.09042,103480.0,103470.0,0.22690959]
[1762701169527,0.09042,103480.0,103470.0,0.29639705]
[1762701170036,0.09042,103480.0,103470.0,0.65719705]
[1762701171147,0.09042,103480.0,103470.0,0.29639705]
[1762701171346,0.09042,103480.0,103470.0,0.65719705]
[1762701172836,0.1870708,103480.0,103470.0,0.65719705]
[1762701173044,0.09042,103480.0,103470.0,0.29639705]
[1762701173448,0.09042,103480.0,103470.0,0.65719705]
[1762701173850,0.1870708,103480.0,103470.0,0.65719705]
[1762701174050,0.09042,103480.0,103470.0,0.29639705]
[1762701174249,0.09042,103480.0,103470.0,0.65719705]
[1762701176245,0.51814969,103480.0,103470.0,0.006]
[1762701176444,0.87894969,103480.0,103470.0,0.05811041]
[1762701176643,0.87894969,103480.0,103470.0,0.06999041]
[1762701177545,0.87894969,103480.0,103470.0,0.06499041]
[1762701177939,0.7854803,103480.0,103470.0,0.06499041]
[1762701180746,0.7854803,103480.0,103470.0,0.05905041]
[1762701181251,0.87894969,103480.0,103470.0,0.05311041]
[1762701181448,0.87894969,103480.0,103470.0,0.03574245]
[1762701181937,0.87894969,103480.0,103470.0,0.08785286]
[1762701182451,0.87894969,103480.0,103470.0,0.06179674]
[1762701183651,0.87894969,103480.0,103470.0,0.01683674]
[1762701183854,0.1730301,103470.0,103460.0,0.1315053]
[1762701184151,1.20199594,103470.0,103460.0,0.07939489]
[1762701184351,1.10852655,103470.0,103460.0,0.07939489]
[1762701184547,1.20199594,103470.0,103460.0,0.07939489]
[1762701184745,1.20199594,103470.0,103460.0,0.03443489]
[1762701185550,0.1643194,103460.0,103450.0,0.07719834]
[1762701185745,0.71205818,103460.0,103450.0,0.07719834]
[1762701185945,0.85762756,103460.0,103450.0,0.07719834]
[1762701186958,0.85862756,103460.0,103450.0,0.07719834]
[1762701187661,0.85862756,103460.0,103450.0,0.0001215]
[1762701187958,0.85962756,103460.0,103450.0,0.0001215]
[1762701189462,0.1730487,103450.0,103440.0,0.04728489]
[1762701189668,0.0441,103430.0,103420.0,0.22511721]
[1762701189854,0.59506689,103430.0,103420.0,0.22511721]
[1762701190156,0.1408068,103420.0,103410.0,0.65610091]
[1762701190354,0.59515934,103420.0,103410.0,0.2951521]
[1762701190553,8.315e-05,103420.0,103410.0,1.44289088]
[1762701190760,0.00014489,103430.0,103420.0,0.1730068]
[1762701191056,0.00014489,103430.0,103420.0,0.77569881]
[1762701191456,0.23468809,103450.0,103440.0,0.1729881]
[1762701191651,0.59548809,103450.0,103440.0,0.1729881]
[1762701191853,0.64679246,103450.0,103440.0,0.0763]
[1762701192053,0.74026185,103450.0,103440.0,0.0763]
[1762701192450,0.74026185,103450.0,103440.0,0.1729881]
[1762701193856,0.74026185,103450.0,103440.0,0.1749881]
[1762701194047,0.74026185,103450.0,103440.0,0.1759881]
[1762701194861,0.64679246,103450.0,103440.0,0.1759881]
[1762701195850,0.64679246,103450.0,103440.0,0.0793]
[1762701196254,0.64679246,103450.0,103440.0,0.1759881]
[1762701196852,0.50215429,103460.0,103450.0,0.1729788]
[1762701197263,0.64788514,103460.0,103450.0,0.1729788]
[1762701197563,0.28708514,103460.0,103450.0,0.1729788]
[1762701197865,0.64788514,103460.0,103450.0,0.0763]
[1762701198059,0.64788514,103460.0,103450.0,0.1729788]
[1762701198455,0.28708514,103460.0,103450.0,0.1739788]
[1762701198656,0.28708514,103460.0,103450.0,0.25292692]
[1762701199266,0.64788514,103460.0,103450.0,0.25292692]
[1762701199653,0.64788514,103460.0,103450.0,0.15624812]
[1762701199854,0.77258712,103460.0,103450.0,0.15624812]
[1762701200866,0.77258712,103460.0,103450.0,0.15824812]
[1762701203068,0.77258712,103460.0,103450.0,0.25492682]
[1762701203362,0.77258712,103460.0,103450.0,0.25392682]
[1762701204067,0.77258712,103460.0,103450.0,0.25392692]
[1762701204269,0.77258712,103460.0,103450.0,0.25492692]
[1762701204861,0.64788514,103460.0,103450.0,0.25492692]
[1762701206164,0.64788514,103460.0,103450.0,0.25392692]
[1762701206765,0.64788514,103460.0,103450.0,0.25192692]
[1762701206968,0.64788514,103460.0,103450.0,0.25392692]
[1762701207565,0.64788514,103460.0,103450.0,0.30486177]
[1762701208062,0.64788514,103460.0,103450.0,0.30386177]
[1762701208266,0.77258712,103460.0,103450.0,0.20918297]
[1762701208463,0.77258712,103460.0,103450.0,0.15724812]
[1762701208959,0.78450712,103460.0,103450.0,0.002]
[1762701209365,0.1325081,103440.0,103430.0,0.22321724]
[1762701209566,0.61801008,103440.0,103430.0,0.12651974]
[1762701209867,0.63787406,103440.0,103430.0,0.12651974]
[1762701210164,0.76257604,103440.0,103430.0,0.12651974]
[1762701210365,1.12936604,103440.0,103430.0,0.00014489]
[1762701212069,1.12936604,103440.0,103430.0,0.00214489]
[1762701212269,1.12936604,103440.0,103430.0,0.00314489]
[1762701213969,0.1262374,103430.0,103420.0,0.03472499]
[1762701214157,0.94829938,103430.0,103420.0,0.03472499]
[1762701214361,0.1262468,103420.0,103410.0,0.03500499]
[1762701214558,0.61174878,103420.0,103410.0,0.06339499]
[1762701214857,0.75753374,103420.0,103410.0,0.02867]
[1762701216075,0.63283176,103420.0,103410.0,0.07351]
[1762701216276,0.75753374,103420.0,103410.0,0.07351]
[1762701216573,0.76631374,103420.0,103410.0,0.00328]
[1762701216772,0.76631374,103420.0,103410.0,0.03167]
[1762701216973,0.76631374,103420.0,103410.0,0.00328]
[1762701217469,0.76631374,103420.0,103410.0,0.03467]
[1762701218067,0.76631374,103420.0,103410.0,0.00628]
[1762701218270,0.76631374,103420.0,103410.0,0.00328]
[1762701218771,0.76631374,103420.0,103410.0,0.003]
[1762701218975,0.1262561,103410.0,103400.0,0.15241533]
[1762701219180,0.61175808,103410.0,103400.0,0.15241533]
[1762701219377,0.7562234,103410.0,103400.0,0.15241533]
[1762701219673,0.7562234,103410.0,103400.0,0.07337489]
[1762701219674,1.0928234,103410.0,103400.0,0.07337489]
[1762701220181,0.7562234,103410.0,103400.0,0.07537489]
[1762701220367,1.0928234,103410.0,103400.0,0.07537489]
[1762701220671,1.0928234,103410.0,103400.0,0.07737489]
[1762701220865,0.7562234,103410.0,103400.0,0.07737489]
[1762701221070,1.0928234,103410.0,103400.0,0.07737489]
[1762701223980,1.0928234,103410.0,103400.0,0.03253489]
[1762701224181,1.0928234,103410.0,103400.0,0.00414489]
[1762701226486,0.7562234,103410.0,103400.0,0.00414489]
[1762701226670,0.7562234,103410.0,103400.0,0.16914039]
[1762701226867,0.63152142,103410.0,103400.0,0.16914039]
[1762701229492,0.27072152,103410.0,103400.0,0.16914039]
[1762701230882,0.63152152,103410.0,103400.0,0.16914039]
[1762701231078,0.27072152,103410.0,103400.0,0.16914039]
[1762701231485,0.14446532,103410.0,103400.0,0.16914039]
[1762701231786,0.47568919,103430.0,103420.0,0.1623668]
[1762701231985,0.47568919,103430.0,103420.0,0.06566]
[1762701232180,0.62150364,103430.0,103420.0,0.1623668]
[1762701232691,0.62150364,103430.0,103420.0,0.06566]
[1762701233378,0.62150364,103430.0,103420.0,0.1623668]
[1762701234089,0.62150364,103430.0,103420.0,0.06566]
[1762701234384,0.74720562,103430.0,103420.0,0.06566]
[1762701235779,0.74720562,103430.0,103420.0,0.1623668]
[1762701236381,0.62250364,103430.0,103420.0,0.1623668]
[1762701238289,0.52579934,103430.0,103420.0,0.19709179]
[1762701238683,0.00114489,103430.0,103420.0,0.57510165]
[1762701238986,0.00114489,103430.0,103420.0,0.94152363]
[1762701239382,0.00114489,103430.0,103420.0,0.69980363]
[1762701239578,0.00114489,103430.0,103420.0,0.64786878]
[1762701239886,0.374,103450.0,103440.0,0.1644081]
[1762701240189,0.51932885,103450.0,103440.0,0.19911591]
[1762701240491,0.51932885,103450.0,103440.0,0.25117762]
[1762701240691,0.15852885,103450.0,103440.0,0.25117762]
[1762701240894,0.25520755,103450.0,103440.0,0.25117762]
[1762701241082,0.61900755,103450.0,103440.0,0.25117762]
[1762701241388,0.62300755,103450.0,103440.0,0.10242781]
[1762701241583,0.74770953,103450.0,103440.0,0.07726781]